{"text_format":"1","workbook":"xlsx","n_sheets":3,"sheets":["Entry Form","Teams & Runners Data Form Entry","Teams"],"not_rendered":{"charts":0,"images":0,"macros":1,"external_links":1,"defined_names":65,"comments":0,"pivot_tables":0},"unopened":[],"bounds":{"document_bytes":16777216,"sheet_cells":100000,"rows_first":2000,"rows_last":500,"rows_between":2000,"halvings":0,"cell_chars":16384,"cell_head_chars":4096},"cells_cut":0,"cells_raw":0,"read":"whole","date_system":"1900"}

{"sheet":"Entry Form","index":0,"n_rows":35,"n_cols":79,"rows_kept":35,"cut":false,"hidden":false,"merged":[[33,29,33,31],[34,29,34,30],[38,28,38,31],[38,5,38,18],[40,5,40,18],[7,34,7,36],[8,34,8,36],[10,34,10,36],[11,34,11,36],[13,34,13,36],[14,34,14,36],[33,3,33,15],[34,3,34,15],[33,16,34,28],[17,4,17,18],[17,19,17,31],[24,20,24,27],[25,20,25,27],[24,7,24,9],[25,7,25,9],[18,20,19,27],[20,20,20,27],[18,7,19,9],[20,7,20,9],[4,7,4,27],[4,29,4,31],[5,29,5,31],[4,4,4,6],[5,4,5,6],[9,18,9,23],[2,16,2,31],[16,29,16,31],[14,1,14,3],[15,1,16,3],[15,7,15,27],[13,1,13,3],[13,4,13,7],[13,8,13,11],[12,25,12,31],[12,1,12,5],[12,6,12,24],[13,12,13,17],[13,18,13,31],[15,4,15,6],[14,20,14,31],[16,7,16,27],[14,4,14,19],[9,24,9,28],[21,20,21,27],[22,20,22,27],[23,20,23,27],[3,1,3,3],[6,1,6,3],[24,10,24,12],[0,22,0,31],[0,1,0,21],[1,1,1,21],[1,22,1,31],[9,15,9,17],[9,7,9,9],[3,4,3,31],[11,1,11,5],[11,6,11,27],[8,24,8,28],[9,29,9,31],[9,10,9,14],[7,4,8,6],[2,1,2,3],[2,4,2,15],[6,13,6,31],[4,1,5,3],[5,7,5,27],[25,10,25,12],[18,1,19,1],[18,2,19,6],[26,10,26,12],[23,13,23,19],[24,13,24,19],[25,13,25,19],[23,2,23,6],[24,2,24,6],[25,2,25,6],[21,13,21,19],[22,13,22,19],[21,2,21,6],[21,10,21,12],[22,2,22,6],[21,7,21,9],[22,7,22,9],[23,7,23,9],[18,13,19,19],[20,13,20,19],[20,2,20,6],[18,10,19,12],[20,10,20,12],[23,10,23,12],[4,34,4,36],[5,34,5,36],[6,4,6,12],[31,1,31,21],[31,22,31,26],[16,4,16,6],[17,1,17,3],[11,28,11,31],[18,28,19,28],[15,34,15,36],[16,34,16,36],[9,1,9,3],[9,4,9,6],[7,7,7,23],[7,24,7,31],[8,7,8,23],[7,1,8,3],[15,29,15,31],[8,29,8,31],[10,1,10,31],[18,29,19,29],[18,30,19,30],[18,31,19,31],[22,10,22,12]]}
[null,"Race Meet Name",null,null,null,null,null,null,null,null,null,null,null,null,null,null,null,null,null,null,null,null,"Hosted By",null,null,null,null,null,null,null,null,null,null,null,null,null,null,null,null,null,null,null,null,null,null,null,null,null,null,null,null,null,null,null,null,null,null,null,null,null,null,null,null,null,null,null,null,null,null,null,null,null,null,null,null,null,null,"Yes",{"$f":"IF(H5=\"\",\"Entry Receiver\",LEFT(H5,SEARCH(\" \",H5,1)))","v":"Entry Receiver"}]
[null,null,null,null,null,null,null,null,null,null,null,null,null,null,null,null,null,null,null,null,null,null,null,null,null,null,null,null,null,null,null,null,null,null,null,null,null,null,null,null,null,null,null,null,null,null,null,null,null,null,null,null,null,null,null,null,null,null,null,null,null,null,null,null,null,null,null,null,null,null,null,null,null,null,null,null,null,"No"]
[null,"Date:"]
[null,"Venue:"]
[null,"Entry Receiver:",null,null,"Name:  ",null,null,null,null,null,null,null,null,null,null,null,null,null,null,null,null,null,null,null,null,null,null,null,"Phone"]
[null,null,null,null,"Address: ",null,null,null,null,null,null,null,null,null,null,null,null,null,null,null,null,null,null,null,null,null,null,null,"Email:  "]
[null,"Entries Close:"]
[null,"Entry Fee:",null,null,null,null,null,"Cheque payable OR Direct Deposit to:  "]
[null,null,null,null,null,null,null,"Deposits must be clearly identified with your club or team name",null,null,null,null,null,null,null,null,null,null,null,null,null,null,null,null,"BSB",null,null,null,null,"Account Number"]
[null,"Includes:",null,null,"EJS Levy $20",null,null,"Yes",null,null,"Matting Levy $10",null,null,null,null,"No"]
[null,"TEAM INFORMATION"]
[null,"Club:",null,null,null,null,null,null,null,null,null,null,null,null,null,null,null,null,null,null,null,null,null,null,null,null,null,null,"To enter Open team names select \"OPEN\" for club name"]
[null,"Team Name:",null,null,null,null,null,null,null,null,null,null,null,null,null,null,null,null,null,null,null,null,null,null,null,"AFA registered team - inform AFA of any new team names (regular, open & veteran Teams) before submitting Entry Form please"]
[null,"Web Seed Time:               (in seconds)",null,null,null,null,null,null,"Declared Seed Time:     (in seconds)",null,null,null,null,null,null,null,null,null,"Break Out Penalties apply to all AFA Sanctioned Race Meetings."]
[null,"Reason for Change:   ",null,null,null,null,null,null,null,null,null,null,null,null,null,null,null,null,null,null,"Seed Time will be taken from “Team Rankings” on AFA website on nominated close of entry date for each competition.  A declared seed time may be submitted, but must be at least one (1) second slower than ranking and be accompanied by a clear explanation for the change"]
[null,"Captain:",null,null,"Name:  ",null,null,null,null,null,null,null,null,null,null,null,null,null,null,null,null,null,null,null,null,null,null,null,"Phone:"]
[null,null,null,null,"Address: ",null,null,null,null,null,null,null,null,null,null,null,null,null,null,null,null,null,null,null,null,null,null,null,"Email:  "]
[null,"Box Loader:"]
[null,null,"Dog’s Name",null,null,null,null,"CRN",null,null,"Jump  Hgt  (in)",null,null,"Handler",null,null,null,null,null,null,"Breed",null,null,null,null,null,null,null,"Hgt  Card Y/N","Sex D / B","Desexed Y/N","CRN Expires"]
[]
[null,1]
[null,2]
[null,3]
[null,4]
[null,5]
[null,6]
[]
[]
[null,"·          A Competitor Reference Number (CRN) must be obtained from the AFA (use AFA Form C7) prior to competing in any AFA Sanctioned Race Meeting. Rules, Section 5(e)"]
[null,"·         Any dog entered in an AFA Sanctioned Race Meeting without a valid CRN will result in forfeiture of all points and event placements for that team. Rules, Section 5(f)"]
[null,"Race meeting Organisers will not accept entry forms unless they are filled out correctly."]
[null,"Declaration:  ALL COMPETITORS AGREE TO ABIDE BY THE AFA RULES AND POLICIES   (Y / N)    ",null,null,null,null,null,null,null,null,null,null,null,null,null,null,null,null,null,null,null,null,"Yes",null,null,null,null,null,"◄◄◄◄"]
[null,"                                                                                                                                                       "]
[null,null,null,"Signed, for and on behalf of all team members",null,null,null,null,null,null,null,null,null,null,null,null,null,null,null,null,null,null,null,null,null,null,null,null,null,"CHECK FOR CURRENT VERSION"]
[null,null,null,"(print name in box when sending emailed copy)",null,null,null,null,null,null,null,null,null,null,null,null,null,null,null,null,null,null,null,null,null,null,null,null,null,"This Form is Version",null,"2017-07-30"]

{"sheet":"Teams & Runners Data Form Entry","index":1,"n_rows":2,"n_cols":44,"rows_kept":2,"cut":false,"hidden":true,"merged":[]}
["Club","Team","Seed - Web","Seed - Declared","Team","Dog 1","CRN 1","Height 1","Handler 1"," Breed 1","Team","Dog 2","CRN 2","Height 2","Handler 2"," Breed 2","Team","Dog 3","CRN 3","Height 3","Handler 3"," Breed 3","Team","Dog 4","CRN 4","Height 4","Handler 4"," Breed 4","Team","Dog 5","CRN 5","Height 5","Handler 5"," Breed 5","Team","Dog 6","CRN 6","Height 6","Handler 6"," Breed 6","Captain Name","Contact Address","Contact Phone","Contact Email"]
[{"$f":"IF('Entry Form'!G12=\"\",\"\",'Entry Form'!G12)","v":""},{"$f":"IF('Entry Form'!$G$13=\"\",\"\",'Entry Form'!$G$13)","v":""},{"$f":"IF('Entry Form'!E14=\"\",\"\",'Entry Form'!E14)","v":""},{"$f":"IF('Entry Form'!M14=\"\",\"\",'Entry Form'!M14)","v":""},{"$f":"IF('Entry Form'!$G$13=\"\",\"\",'Entry Form'!$G$13)","v":""},{"$f":"IF('Entry Form'!$C21=\"\",\"\",'Entry Form'!$C21)","v":""},{"$f":"IF('Entry Form'!$H21=\"\",\"\",'Entry Form'!$H21)","v":""},{"$f":"IF('Entry Form'!K$21=\"\",\"\",'Entry Form'!$K21)","v":""},{"$f":"IF('Entry Form'!$N21=\"\",\"\",'Entry Form'!$N21)","v":""},{"$f":"IF('Entry Form'!$U21=\"\",\"\",'Entry Form'!$U21)","v":""},{"$f":"IF('Entry Form'!$G$13=\"\",\"\",'Entry Form'!$G$13)","v":""},{"$f":"IF('Entry Form'!$C22=\"\",\"\",'Entry Form'!$C22)","v":""},{"$f":"IF('Entry Form'!$H22=\"\",\"\",'Entry Form'!$H22)","v":""},{"$f":"IF('Entry Form'!K$22=\"\",\"\",'Entry Form'!$K22)","v":""},{"$f":"IF('Entry Form'!$N22=\"\",\"\",'Entry Form'!$N22)","v":""},{"$f":"IF('Entry Form'!$U22=\"\",\"\",'Entry Form'!$U22)","v":""},{"$f":"IF('Entry Form'!$G$13=\"\",\"\",'Entry Form'!$G$13)","v":""},{"$f":"IF('Entry Form'!$C23=\"\",\"\",'Entry Form'!$C23)","v":""},{"$f":"IF('Entry Form'!$H23=\"\",\"\",'Entry Form'!$H23)","v":""},{"$f":"IF('Entry Form'!K$23=\"\",\"\",'Entry Form'!$K23)","v":""},{"$f":"IF('Entry Form'!$N23=\"\",\"\",'Entry Form'!$N23)","v":""},{"$f":"IF('Entry Form'!$U23=\"\",\"\",'Entry Form'!$U23)","v":""},{"$f":"IF('Entry Form'!$G$13=\"\",\"\",'Entry Form'!$G$13)","v":""},{"$f":"IF('Entry Form'!$C24=\"\",\"\",'Entry Form'!$C24)","v":""},{"$f":"IF('Entry Form'!$H24=\"\",\"\",'Entry Form'!$H24)","v":""},{"$f":"IF('Entry Form'!K$24=\"\",\"\",'Entry Form'!$K24)","v":""},{"$f":"IF('Entry Form'!$N24=\"\",\"\",'Entry Form'!$N24)","v":""},{"$f":"IF('Entry Form'!$U24=\"\",\"\",'Entry Form'!$U24)","v":""},{"$f":"IF('Entry Form'!$G$13=\"\",\"\",'Entry Form'!$G$13)","v":""},{"$f":"IF('Entry Form'!$C25=\"\",\"\",'Entry Form'!$C25)","v":""},{"$f":"IF('Entry Form'!$H25=\"\",\"\",'Entry Form'!$H25)","v":""},{"$f":"IF('Entry Form'!K$25=\"\",\"\",'Entry Form'!$K25)","v":""},{"$f":"IF('Entry Form'!$N25=\"\",\"\",'Entry Form'!$N25)","v":""},{"$f":"IF('Entry Form'!$U25=\"\",\"\",'Entry Form'!$U25)","v":""},{"$f":"IF('Entry Form'!$G$13=\"\",\"\",'Entry Form'!$G$13)","v":""},{"$f":"IF('Entry Form'!$C26=\"\",\"\",'Entry Form'!$C26)","v":""},{"$f":"IF('Entry Form'!$H26=\"\",\"\",'Entry Form'!$H26)","v":""},{"$f":"IF('Entry Form'!K$26=\"\",\"\",'Entry Form'!$K26)","v":""},{"$f":"IF('Entry Form'!$N26=\"\",\"\",'Entry Form'!$N26)","v":""},{"$f":"IF('Entry Form'!$U26=\"\",\"\",'Entry Form'!$U26)","v":""},{"$f":"IF('Entry Form'!H16=\"\",\"\",'Entry Form'!H16)","v":""},{"$f":"IF('Entry Form'!H17=\"\",\"\",'Entry Form'!H17)","v":""},{"$f":"+IF('Entry Form'!AD16=\"\",\"\",'Entry Form'!AD16)","v":""},{"$f":"IF('Entry Form'!AD17=\"\",\"\",'Entry Form'!AD17)","v":""}]

{"sheet":"Teams","index":2,"n_rows":57,"n_cols":47,"rows_kept":57,"cut":false,"hidden":false,"merged":[]}
["ACT Companion Dog Club","All Paws Airborne","Altona Civic Obedience Dog Club Inc","Awesome Pawsome","Backyard Buddies","Ballarat Dog Obedience Club","Belconnen Dog Obedience Club","Bellarine Dog Activites Group","Berwick Obedience Dog Club","Croydon and District Obedience Dog Club","Dover Gardens Kennel and Obedience Club Inc","Eastside Flyers Flyball Team","Flyball Fanatics","Four Paws Racing","Frankston Dog Obedience Club Inc","Geelong Flyball","Goulburn Dog Training and Kennel Club Inc","Hastings and District Obedience Dog Club Inc","Keilor Obedience Dog Training Centre Inc","Luv a Dog Obedience and Puppy Training Centre","Milton Ulladulla Dog Training Club Inc","Moorabbin Obedience Dog Club Inc","Northern Tassie Zoomers","Norwest Canine Association Inc","OPEN","Orange Krush","Para District Obedience Dog Club Inc","Parramatta International Canine Sports Inc","Paws 4 Fun Dog Training Club Inc","Pine Rivers Dog Training Club","Redlands Dog Obedience Club","South Coast Dog Training Club Inc","Southern Cross Flyball","St George Flyball Club","Star Paws","Supersonics","Sutherland Shire Dog Training Club","Sydney Psychos Flyball Team","Sydney ScallyWags Flyball Inc","Sydneysiders","Tassie Flying Paws Dog Club Inc","Tuggeranong Dog Training Club Inc","Western Weiners","Wollongong Wonder Woofs","Wonthaggi Dog Obedience Club","Norwest Thunderdogs & Sydney Psychos","Sydney Psychos & Norwest Thunderdogs"]
["Canberra X-cellence","Airborne","Altona Arrows","Awesome Dogs","Backyard Buddies","Ballarat Eureka","Belconnen Beach Bullets","Bellarine Bandits","Berwick Bits & Pieces","Croydon Rocket Allsorts","Fly'd Over","Eastside Flyers","Fairly Flying","4 Jacks","Frankston Storm - Blizzards","Geelong Chargers","Rocky Hill Racers","Hastings Howlers Hit & Fly","T-Keilor Gold","Luvadog Regardless","Milton Muddy's","Mod Squad","Zoomers","Billabong Mutts","4PR Open Border Jumpers","First Krush","Juvenile Delinquents","Flying Aces 1","Paws4Fun","Pine Rivers Dare Devils","Burn N Bolt","Delectable Dish Lickers","Alpha","Ballistics","Hyper Drive","Hypersonics","Southerly Breeze","Psychodelics","Scallywag Borders","City Slickers","Tassie Flying Devils","Tuggeranong Howling Torpedoes","Cheese Dogs","Wollongong Wonder Dogs","WonDogs Cut Backs"]
["Canberra X-ceptionals","Airborne Flybys","Altona Flying Arrows","Awesome Lefties",null,"Ballarat Eureka Cavalry ","Belconnen Bullet Points","Bellarine Barking Bandits","Berwick Bladerunners","Croydon Rocket Ballistic Missiles","Run'd Over","Eastside Flyers Cockatoos","Fanatic Flyballers","4 Paws Waiting","Frankston Storm - Chasers","Geelong Dip Sticks",null,"Hastings Howlers Hit & Hope","T-Keilor Laidbacks","Luvadog Regardless 1","Mudd On The Paws","Moorabbin Flying Paws",null,"Malibu Mutts","Afterburners","Outta Kontrol","MJ & The Aussies","Flying Aces 2","Paws4Fun 1","Pine Rivers Devils","Hit N Burn","Delinquent Dish Lickers","Andromeda","Draggin' Paws","Hyper Space","Shock Waves","Southerly Busters","Psycho Killers","Scallywag Cannonballs","Supersonics","Tassie Flying Paws","Tuggeranong Launching Torpedos","Chilli Dogs","Wonder Woofs X","WonDogs Hang 5's"]
["Canberra X-citables","Airborne Hornets","Altona Golden Arrows","Right Awesome",null,"Ballarat Eureka Diggers","Belconnen Bullet Proof","Bellarine Barquers","Berwick Blaze","Croydon Rocket Blasters","Zoom'd Over","Eastside Flyers Galahs","Flat Out Fanatics","888","Frankston Storm - Cyclones","Geelong Drifters",null,"Hastings Howlers Hit & Hum","T-Keilor Shots","Luvadog Regardless 2","Muddy's","Moorabbin Marvels",null,"Norwest Thunderbirds","Agile Paws",null,"Naughty or Nice","Frequent Flyers","Paws4Fun 2","Pine Rivers Doggie Devils","Turn N Burn","Deranged Dish Lickers","Beta","Dragonaughts","The Force","Sonic Boom","Southerly Claus","Psychosomantics","Scallywag CannonBlast","Sydneysiders","Tassie Flying Tigers","Tuggeranong Screaming Torpedoes","Cocktail Franks","Woofers 1","WonDogs Pointbreak"]
["Canberra X-clusives","Airborne Special Ops","Altona Silver Arrows","The Awesome Ones ",null,"Ballarat Eureka Gold Diggers","Belconnen Bullets","Bellarine Battlers","Berwick Blitz","Croydon Rocket Cadets",null,"Eastside Flyers Kites","Flyball Fanatic 4","Accellerators","Frankston Storm - Hailstorms","Geelong Fly Wheelers",null,"Hastings Howlers Hit & Miss","T-Keilor Slammers",null,"Muddy's 1",null,null,"Norwest Thunderbolts","All Paws",null,"Para Ball Busters","Mixed Mutts","Paws4Fun Mix","Pine Rivers Golden Oldies",null,"Der Dish Lickers","Comets","Dragon Dragsters","The Force Awakens","Supercruise","Southerly Santas","Sydney Psychoanalysts","Scallywag Cannonfire",null,null,"Tuggeranong Torpedoes","Corn Dogs",null,"WonDogs Quicksilver's"]
["Canberra X-emplars",null,"Altona Shooting Arrows","Wacol Woofers",null,"Ballarat Eureka Gold Miners","Belconnen Bullet Train","Bellarine Baysiders","Berwick Breezers","Croydon Rocket Cosmonauts",null,"Eastside Flyers Raptors","Flyball Fanatics","Air Dogs","Frankston Storm - Hurricanes","Geelong Red Liners",null,"Hastings Howlers Hit & Run","T-Keilor Sunrises",null,"Muddy's 2",null,null,"Norwest Thunderbursts","Avengers",null,"Para Ballistics","Pandemonium",null,"Pine Rivers Little Devils",null,"Destructible Dish Lickers","Constellations","Dragon Flames",null,"Transonics","Southerly Showers","Sydney Psycho Maniacs","Scallywag Cruisers",null,null,null,"Dagwood Dogs",null,"WonDogs Surfs Up"]
["Canberra X Factor",null,null,null,null,"Ballarat Eureka Gold Nuggets","Belconnen Chocolate Bullets","Bellarine Beach Combers","Berwick Bruizers","Croydon Rocket Mix Bag",null,"Eastside Flyers Skylarks","Flyball Fanatics Four","Bayside 6","Frankston Storm - In a Teacup","Geelong Speedsters",null,"Hastings Howlers Hit & Rush","T-Keilor Twilights",null,"Muddy's Again",null,null,"Norwest Thunderbutts","Awesome Rivers",null,"Para BC & the M & N's","Pawpedoes",null,"Pine Rivers Rascals",null,"Dhose Damn Dish Lickers","Deer Bush","Dragonflies",null,null,"Southerly Stormers","Sydney Psychopaths","Scallywag Hopefuls",null,null,null,"Harry & the Hot Dogs",null,"WonDogs Wipe Outs"]
["Canberra X Factor 1",null,null,null,null,"Ballarat Eureka Miners","Belconnen Chocolate-Proof","Bellarine Beach Patrol","Berwick Burnouts","Croydon Rocket NQR",null,"Eastside Flyers Swifts","Flyball Fanatics One","Beach Crew","Frankston Storm - Lightning Bolts","Geelong Top Fuelers",null,null,null,null,"The Muddy's",null,null,"Norwest Thunderclaps","Belconnen Random Bullets",null,"Para Boy Scoots","Petti Paws",null,"Pine Rivers Rebels",null,"Dilly Dally Dish Lickers","Delta","DragonFlyers",null,null,"Southerly Storm Force","Sydney Psychos","Scallywag Jumbucks",null,null,null,"Hot Dogs"]
["Canberra X Factor 2",null,null,null,null,"Ballarat Eureka Rebels","Belconnen Dodgeda Bullets","Bellarine Best Friends",null,"Croydon Rocket Scientists",null,"Eastside Flyers Wagtails","Flyball Fanatics Three","Bounzers","Frankston Storm - Tornadoes","Geelong V8's",null,null,null,null,null,null,null,"Norwest Thunderclashes","Blended Buddies Open",null,"Paracetamols","PICSI Berserkers",null,null,null,"Ding Dong Dish Lickers","Funstars","Dragon Freaks",null,null,"Southerly Storm Force 4","Sydney Psychos Phantoms","Scallywag K9ers ",null,null,null,"Pluto Pups"]
["Canberra X Factor 3",null,null,null,null,"Ballarat Eureka Sovereigns","Belconnen Licorice Bullets","Bellarine Bitches",null,"Croydon Rocket Secret Weapons",null,null,"Flyball Fanatics Too","Chase It","Frankston Storm - Twisters",null,null,null,null,null,null,null,null,"Norwest Thunderclouds","Buds of Brisbane",null,"Para Dale Vintage Cheese","PICSI Parramatta",null,null,null,"Dish Lickers","Jokestars","DragonFyre",null,null,"Southerly Storm Force 5","Sydney Psychos Randoms","Scallywag Krusaders"]
["Canberra X Factor 4",null,null,null,null,"Ballarat Eureka Stockaders","Belconnen Rubber Bullets","Bellarine Borders",null,"Croydon Rocket Star Gazers",null,null,"Flyball Fanatics Two","CPS","Frankston Storm - Typhoons",null,null,null,null,null,null,null,null,"Norwest Thunderdogs 1","Canberra X-traordinary",null,"Para Divas","Pistols",null,null,null,"Dog Gone Dish Lickers","Mellon Collies","DragonSlayers",null,null,"Southerly Storm Force Four & Half","Sydney Psychos Too","Scallywag Mates"]
["Canberra X Factor 5",null,null,null,null,"Ballarat Eureka Troopers","Belconnen Rusty Bullets","Bellarine Breakers",null,null,null,null,"Flying Fanatics","Devils Cut",null,null,null,null,null,null,null,null,null,"Norwest Thunderdogs 2","Crate Escapers",null,"Para Glass & A Half","Power Paws",null,null,null,"Double Dish Lickers","Orbits","Fireballs",null,null,"Southerly Tornadoes","Sydney Psychotics","Scallywag Originals"]
["Canberra X Factor 6",null,null,null,null,"Ballarat Gold Nuggets","Belconnen Speeding Bullets","Bellarine Buccaneers",null,null,null,null,"Flying Fidos","Extreme",null,null,null,null,null,null,null,null,null,"Norwest Thunderdogs 3","Crossfire",null,"Para Gliders","Pyrotex",null,null,null,"Dynamite Dish Lickers","Pulsars","Fire Fangs",null,null,null,null,"Scallywag Ozsmart"]
["Canberra X Factor APM",null,null,null,null,"Ballarat Miners","Miltos Mates",null,null,null,null,null,"Freaky Fanatics","Flivers",null,null,null,null,null,null,null,null,null,"Norwest Thunderdogs 4","FAB",null,"Para Paws","Travelling PICSI's",null,null,null,null,"Quasars","Havoc Hounds",null,null,null,null,"Scallywag Ozsmart 1"]
["Canberra X-hibitionists",null,null,null,null,null,null,null,null,null,null,null,"Furry Fanatics","Flyers",null,null,null,null,null,null,null,null,null,"Norwest Thunderdogs 5","Fast & Furious",null,"Para Punchers",null,null,null,null,null,"Shining Stars","Kobe's slowbies",null,null,null,null,"Scallywag Ozsmart 2"]
["Canberra X-perienced",null,null,null,null,null,null,null,null,null,null,null,null,"Four Paws Racing (4PR)",null,null,null,null,null,null,null,null,null,"Norwest Thunderdogs 6","Flyball Friends",null,"Para Punks",null,null,null,null,null,"Shooting Shooters","Miss Matched Mutts",null,null,null,null,"Scallywag Ozsmart Cruisers"]
["Canberra X-perts",null,null,null,null,null,null,null,null,null,null,null,null,"GoDogs",null,null,null,null,null,null,null,null,null,"Norwest Thunderdogs 7","Flying Discs",null,"Para Shooters",null,null,null,null,null,"Shooting Stars","Pendragon",null,null,null,null,"Scallywag Ozsmart Originals"]
["Canberra X-posed",null,null,null,null,null,null,null,null,null,null,null,null,"Greenies",null,null,null,null,null,null,null,null,null,"Norwest Thunderdogs 8","Four Star Krushers",null,"Para Show Stoppers",null,null,null,null,null,"Solar Flares","Phoenix",null,null,null,null,"Scallywag Ozsmart Rockets"]
["Canberra X-press",null,null,null,null,null,null,null,null,null,null,null,null,"Loyalists",null,null,null,null,null,null,null,null,null,"Norwest Thunderdogs Go","High Flyers",null,"Para Strollers",null,null,null,null,null,"Star Burst","Vipers",null,null,null,null,"Scallywag Pirates"]
["Canberra X-traterestrials",null,null,null,null,null,null,null,null,null,null,null,null,"M & M's",null,null,null,null,null,null,null,null,null,"Norwest Thunderheads","Hillbilly Misfits",null,"Para Troopers",null,null,null,null,null,"Starbutts","Zephyrs",null,null,null,null,"Scallywag Rejects"]
["Canberra X-tremes",null,null,null,null,null,null,null,null,null,null,null,null,"Need 4 Speed",null,null,null,null,null,null,null,null,null,"Norwest Thundershowers","Jolly Jumpers",null,"Pure N Crosses",null,null,null,null,null,"Star Struck",null,null,null,null,null,"Scallywag Rockets"]
["Hot X Bunnies",null,null,null,null,null,null,null,null,null,null,null,null,"Paws 4 No One",null,null,null,null,null,null,null,null,null,"Norwest Thunderstorms","Just Plane Fast",null,"Team Nitro",null,null,null,null,null,"Star Trackers",null,null,null,null,null,"Scallywag Scholars"]
["Hot X Chocolates",null,null,null,null,null,null,null,null,null,null,null,null,"Sharoos",null,null,null,null,null,null,null,null,null,"Norwest Thunderstrikes","Merged Mutts Open",null,"Tessa's Testamonials",null,null,null,null,null,"Supa Nova",null,null,null,null,null,"Scallywag Scoundrels"]
[null,null,null,null,null,null,null,null,null,null,null,null,null,"Squeezz",null,null,null,null,null,null,null,null,null,"Norwest Thundervets","Milton Mighty Mutts",null,"Tess & The Aussies",null,null,null,null,null,null,null,null,null,null,null,"Scallywags"]
[null,null,null,null,null,null,null,null,null,null,null,null,null,"SuperFuelers",null,null,null,null,null,null,null,null,null,"Quicksilver Mutts","Mixed Nuts",null,null,null,null,null,null,null,null,null,null,null,null,null,"Scallywags 1"]
[null,null,null,null,null,null,null,null,null,null,null,null,null,"Surf Side Six",null,null,null,null,null,null,null,null,null,"Rip Curl Mutts","Mix'N'Match",null,null,null,null,null,null,null,null,null,null,null,null,null,"Scallywags 2"]
[null,null,null,null,null,null,null,null,null,null,null,null,null,"Toppers",null,null,null,null,null,null,null,null,null,"Thunderdogs R Go","Odd Balls",null,null,null,null,null,null,null,null,null,null,null,null,null,"Scallywags 3"]
[null,null,null,null,null,null,null,null,null,null,null,null,null,"Tugga Wubbas",null,null,null,null,null,null,null,null,null,null,"Opening Torpedoes",null,null,null,null,null,null,null,null,null,null,null,null,null,"Travelling Scallywags"]
[null,null,null,null,null,null,null,null,null,null,null,null,null,"XLR8",null,null,null,null,null,null,null,null,null,null,"Outkasts"]
[null,null,null,null,null,null,null,null,null,null,null,null,null,null,null,null,null,null,null,null,null,null,null,null,"Out Kruisin' "]
[null,null,null,null,null,null,null,null,null,null,null,null,null,null,null,null,null,null,null,null,null,null,null,null,"Pick'N'Mix"]
[null,null,null,null,null,null,null,null,null,null,null,null,null,null,null,null,null,null,null,null,null,null,null,null,"Pixies in Wonderland"]
[null,null,null,null,null,null,null,null,null,null,null,null,null,null,null,null,null,null,null,null,null,null,null,null,"Power Pups"]
[null,null,null,null,null,null,null,null,null,null,null,null,null,null,null,null,null,null,null,null,null,null,null,null,"Psycho Chillers"]
[null,null,null,null,null,null,null,null,null,null,null,null,null,null,null,null,null,null,null,null,null,null,null,null,"Psycho Thrillers"]
[null,null,null,null,null,null,null,null,null,null,null,null,null,null,null,null,null,null,null,null,null,null,null,null,"Puddle Jumpers"]
[null,null,null,null,null,null,null,null,null,null,null,null,null,null,null,null,null,null,null,null,null,null,null,null,"Rabble Dash"]
[null,null,null,null,null,null,null,null,null,null,null,null,null,null,null,null,null,null,null,null,null,null,null,null,"Redrivers"]
[null,null,null,null,null,null,null,null,null,null,null,null,null,null,null,null,null,null,null,null,null,null,null,null,"Rescues Rock"]
[null,null,null,null,null,null,null,null,null,null,null,null,null,null,null,null,null,null,null,null,null,null,null,null,"Ruff and Ready"]
[null,null,null,null,null,null,null,null,null,null,null,null,null,null,null,null,null,null,null,null,null,null,null,null,"Scallyicsi"]
[null,null,null,null,null,null,null,null,null,null,null,null,null,null,null,null,null,null,null,null,null,null,null,null,"Shelter Hounds"]
[null,null,null,null,null,null,null,null,null,null,null,null,null,null,null,null,null,null,null,null,null,null,null,null,"Shooting Bullets"]
[null,null,null,null,null,null,null,null,null,null,null,null,null,null,null,null,null,null,null,null,null,null,null,null,"Southern Woofs"]
[null,null,null,null,null,null,null,null,null,null,null,null,null,null,null,null,null,null,null,null,null,null,null,null,"Star Paws Galaxy"]
[null,null,null,null,null,null,null,null,null,null,null,null,null,null,null,null,null,null,null,null,null,null,null,null,"Star Power"]
[null,null,null,null,null,null,null,null,null,null,null,null,null,null,null,null,null,null,null,null,null,null,null,null,"Superheros"]
[null,null,null,null,null,null,null,null,null,null,null,null,null,null,null,null,null,null,null,null,null,null,null,null,"The Sensations"]
[null,null,null,null,null,null,null,null,null,null,null,null,null,null,null,null,null,null,null,null,null,null,null,null,"The Southeners"]
[null,null,null,null,null,null,null,null,null,null,null,null,null,null,null,null,null,null,null,null,null,null,null,null,"Thunderdog Tornado"]
[null,null,null,null,null,null,null,null,null,null,null,null,null,null,null,null,null,null,null,null,null,null,null,null,"Thunderdog Tsunami"]
[null,null,null,null,null,null,null,null,null,null,null,null,null,null,null,null,null,null,null,null,null,null,null,null,"Top Gun"]
[null,null,null,null,null,null,null,null,null,null,null,null,null,null,null,null,null,null,null,null,null,null,null,null,"Undercover Canines"]
[null,null,null,null,null,null,null,null,null,null,null,null,null,null,null,null,null,null,null,null,null,null,null,null,"Wacky Racers"]
[null,null,null,null,null,null,null,null,null,null,null,null,null,null,null,null,null,null,null,null,null,null,null,null,"Watchout Spanielsabout"]
[null,null,null,null,null,null,null,null,null,null,null,null,null,null,null,null,null,null,null,null,null,null,null,null,"Wing Man"]
[null,null,null,null,null,null,null,null,null,null,null,null,null,null,null,null,null,null,null,null,null,null,null,null,"X-Ploding Torpedoes"]